bitfinex-derivatives/quotes_SOLF0:USTF0_20240912
["timestamp","ask_amount","ask_price","bid_price","bid_amount"]
[1726155371260,20.5169,134.43,134.37,3.74051198]
[1726155371455,20.5169,134.43,134.32,17.82]
[1726155372457,23.8647,134.43,134.38,3.3487]
[1726155372652,23.8647,134.43,134.39,3.64079476]
[1726155372952,20.5169,134.43,134.36,3.3491]
[1726155373364,20.5169,134.43,134.32,17.82]
[1726155373568,17.82,134.41,134.32,17.82]
[1726155374070,21.1682,134.41,134.32,17.82]
[1726155374868,3.3479,134.42,134.37,3.3489]
[1726155375164,3.3479,134.42,134.38,3.65046881]
[1726155376561,3.3479,134.42,134.38,6.99926881]
[1726155376768,3.3479,134.42,134.39,3.75576722]
[1726155377463,3.3479,134.42,134.39,7.10426722]
[1726155377763,3.3479,134.42,134.39,3.75576722]
[1726155377964,3.3479,134.42,134.32,17.82]
[1726155378270,20.5169,134.43,134.34,17.82]
[1726155378563,3.348,134.42,134.38,3.3486]
[1726155378760,3.348,134.42,134.38,7.03786259]
[1726155378964,20.5169,134.43,134.32,17.82]
[1726155379163,20.5169,134.43,134.36,3.3491]
[1726155379371,17.82,134.41,134.3,21.53985691]
[1726155379675,17.82,134.39,134.3,21.53985691]
[1726155379860,21.1687,134.39,134.3,21.53985691]
[1726155380168,17.82,134.39,134.3,21.53985691]
[1726155380354,3.3489,134.38,134.34,3.3498]
[1726155380760,3.3497,134.35,134.3,7.07055691]
[1726155380968,17.82,134.35,134.26,17.82]
[1726155381964,21.1696,134.35,134.3,3.3507]
[1726155382165,21.1696,134.35,134.31,3.66040916]
[1726155382565,17.82,134.35,134.26,17.82]
[1726155382962,23.1627,134.37,134.28,17.82]
[1726155383166,5.3427,134.37,134.28,17.82]
[1726155383472,5.3427,134.37,134.3,17.82]
[1726155383680,2.7086,134.37,134.3,21.52003502]
[1726155383976,2.6459,134.38,134.35,3.3494]
[1726155384171,2.6459,134.38,134.32,17.82]
[1726155384378,17.82,134.41,134.32,17.82]
[1726155384379,21.1682,134.41,134.32,17.82]
[1726155384683,5.062,134.42,134.32,21.57065414]
[1726155385079,5.062,134.42,134.34,17.82]
[1726155386368,8.41,134.42,134.36,3.3492]
[1726155386765,5.062,134.42,134.36,3.3492]
[1726155386967,3.3482,134.41,134.36,3.3492]
[1726155387164,3.3482,134.41,134.35,3.3495]
[1726155387567,3.3484,134.4,134.35,3.3495]
[1726155388480,3.3484,134.4,134.32,21.57065414]
[1726155388481,3.3482,134.41,134.36,3.3493]
[1726155389072,5.062,134.42,134.38,3.3488]
[1726155389275,2.61,134.43,134.36,17.82]
[1726155389580,2.61,134.43,134.38,3.3487]
[1726155390381,5.9577,134.43,134.38,3.3487]
[1726155390680,17.82,134.41,134.36,3.74321006]
[1726155390887,21.1683,134.41,134.33,0.7317]
[1726155391180,21.1683,134.41,134.35,3.3494]
[1726155391366,21.1683,134.41,134.35,7.07828921]
[1726155391770,3.3485,134.4,134.35,7.07828921]
[1726155392172,8.416,134.4,134.35,7.07828921]
[1726155392373,5.0675,134.4,134.35,7.07828921]
[1726155392684,8.4159,134.4,134.35,7.07828921]
[1726155392884,5.0675,134.4,134.35,7.07828921]
[1726155393375,8.4159,134.4,134.35,7.07828921]
[1726155394380,3.3486,134.39,134.35,7.07828921]
[1726155394580,5.0675,134.4,134.36,3.3492]
[1726155395378,8.416,134.4,134.36,3.3492]
[1726155395973,3.3487,134.39,134.35,7.07838921]
[1726155396173,3.3487,134.39,134.35,3.3495]
[1726155396683,3.3487,134.39,134.36,3.69315784]
[1726155397183,5.0675,134.4,134.31,17.82]
[1726155397782,8.416,134.4,134.31,21.46142982]
[1726155398092,5.0675,134.4,134.31,21.46142982]
[1726155398379,5.0675,134.4,134.37,3.3491]
[1726155398770,5.0675,134.4,134.33,17.82]
[1726155399179,8.416,134.4,134.35,3.3494]
[1726155399375,8.416,134.4,134.33,17.82]
[1726155399981,5.0675,134.4,134.37,3.3489]
[1726155400173,5.0675,134.4,134.38,3.67976066]
[1726155400784,2.5153,134.4,134.38,3.3487]
[1726155400985,3.3478,134.42,134.39,3.65557129]
[1726155402385,3.3478,134.42,134.38,3.3487]
[1726155402785,3.3478,134.42,134.38,7.07572295]
[1726155403178,3.3478,134.42,134.39,3.3486]
[1726155404279,20.43,134.43,134.33,17.82]
[1726155404585,20.43,134.43,134.31,21.46142982]
[1726155405182,3.3486,134.39,134.31,21.46142982]
[1726155405669,3.3492,134.37,134.31,21.46142982]
[1726155405870,3.3492,134.37,134.31,3.64142982]
[1726155406071,3.3492,134.37,134.29,21.3233]
[1726155406378,5.2736,134.39,134.29,24.97952208]
[1726155406585,20.5517,134.38,134.29,24.97952208]
[1726155406976,3.3497,134.35,134.3,3.3507]
[1726155407178,20.5517,134.38,134.3,3.3507]
[1726155407878,20.5517,134.38,134.31,3.3504]
[1726155408086,3.3496,134.35,134.31,3.3504]
[1726155408574,20.5517,134.38,134.29,3.65622208]
[1726155408777,20.5517,134.38,134.29,17.82]
[1726155408974,20.5517,134.38,134.29,21.57595415]
[1726155409179,3.3495,134.36,134.29,21.57595415]
[1726155409687,20.5517,134.38,134.29,21.57595415]
[1726155410290,3.3496,134.35,134.31,3.3504]
[1726155411576,3.3498,134.34,134.3,3.3507]
[1726155413490,20.5517,134.38,134.29,3.75595415]
[1726155413491,3.3501,134.33,134.29,7.10685415]
[1726155413706,3.3501,134.33,134.29,3.3509]
[1726155413998,20.5517,134.38,134.29,3.3509]
[1726155414190,3.3499,134.34,134.3,3.3508]
[1726155417894,3.3499,134.34,134.29,7.15589801]
[1726155419500,3.3499,134.34,134.3,3.3508]
[1726155419897,3.3499,134.34,134.31,3.79318749]
[1726155420098,20.5517,134.38,134.31,3.3505]
[1726155420398,20.5517,134.38,134.32,3.76824456]
[1726155421094,3.3496,134.35,134.32,3.76824456]
[1726155422289,3.3495,134.36,134.32,7.11854456]
[1726155422493,3.3495,134.36,134.32,3.3503]
[1726155422695,20.5517,134.38,134.24,7.447]
[1726155422889,5.2736,134.39,134.32,17.82]
[1726155423097,5.2736,134.39,134.32,21.49071173]
[1726155423497,5.2736,134.39,134.35,3.3494]
[1726155423788,5.2736,134.39,134.32,21.49071173]
[1726155423988,5.2736,134.39,134.36,3.3493]
[1726155424596,2.6416,134.39,134.36,3.3493]
[1726155424798,3.3482,134.41,134.36,3.3493]
[1726155425102,3.348,134.42,134.37,3.3489]
[1726155425802,3.348,134.42,134.38,3.64349252]
[1726155426196,5.2844,134.43,134.38,17.82]
[1726155426596,5.2844,134.43,134.4,3.3481]
[1726155426794,2.5516,134.47,134.38,17.82]
[1726155427003,2.5516,134.47,134.41,17.82]
[1726155427218,5.8983,134.47,134.41,17.82]
[1726155427400,2.5516,134.47,134.43,17.82]
[1726155428212,2.5516,134.47,134.44,3.3473]
[1726155428608,2.5516,134.47,134.43,21.5297243]
[1726155429313,5.1979,134.48,134.43,21.5297243]
[1726155429610,5.1979,134.48,134.43,3.7097243]
[1726155429910,5.1979,134.48,134.41,17.82]
[1726155430108,5.1979,134.48,134.39,3.5079]
[1726155430109,23.0179,134.48,134.39,17.82]
[1726155430605,3.3473,134.45,134.39,17.82]
[1726155431013,3.3473,134.45,134.4,3.3482]
[1726155431413,3.3478,134.43,134.39,3.79137947]
[1726155431601,2.6598,134.44,134.37,3.349]
[1726155431801,5.3255,134.42,134.37,3.349]
[1726155432201,5.3255,134.42,134.38,3.65503385]
[1726155432408,8.6735,134.42,134.38,3.65503385]
[1726155432609,5.3255,134.42,134.36,3.3492]
[1726155432803,5.3255,134.42,134.35,17.82]
[1726155433298,5.3255,134.42,134.38,3.3487]
[1726155433714,5.3255,134.42,134.35,17.82]
[1726155433911,3.3481,134.41,134.36,3.3493]
[1726155434110,5.3255,134.42,134.37,3.74544236]
[1726155434426,3.3481,134.41,134.36,3.3492]
[1726155434720,5.3255,134.42,134.37,3.72274722]
[1726155434918,5.3255,134.42,134.33,17.82]
[1726155435910,3.3483,134.4,134.35,3.3494]
[1726155436110,5.3255,134.42,134.35,3.3494]
[1726155436618,3.3482,134.41,134.35,3.3494]
[1726155437618,3.3482,134.41,134.36,3.3493]
[1726155437811,3.3482,134.41,134.37,3.66135277]
[1726155438010,5.3255,134.42,134.33,17.82]
[1726155438314,23.1455,134.42,134.31,17.82]
[1726155438705,3.3491,134.38,134.32,3.3502]
[1726155439311,3.3491,134.38,134.33,3.3501]
[1726155440812,3.3487,134.39,134.34,3.3498]
[1726155441112,5.3255,134.42,134.35,17.82]
[1726155441311,5.3255,134.42,134.39,17.82]
[1726155441620,5.3255,134.42,134.39,21.53167013]
[1726155442411,5.3255,134.42,134.39,3.71167013]
[1726155442618,5.3255,134.42,134.37,17.82]
[1726155443021,5.3255,134.42,134.39,3.3485]
[1726155443231,2.6598,134.44,134.39,17.82]
[1726155443529,5.3176,134.46,134.41,17.82]
[1726155443919,8.6645,134.46,134.41,21.1679]
[1726155444122,5.3176,134.46,134.41,21.61669593]
[1726155444512,5.3176,134.46,134.42,3.3477]
[1726155444712,228.0,134.56,134.43,17.82]
[1726155444713,17.82,134.53,134.43,17.82]
[1726155445129,3.346,134.5,134.44,3.3472]
[1726155445328,17.82,134.53,134.43,17.82]
[1726155445525,40.17,134.53,134.43,17.82]
[1726155445723,7.671,134.54,134.45,17.82]
[1726155446331,3.3452,134.53,134.45,17.82]
[1726155446629,7.671,134.54,134.47,17.82]
[1726155446827,7.671,134.54,134.49,3.346]
[1726155447127,5.065,134.54,134.49,17.82]
[1726155447327,5.065,134.54,134.51,3.3456]
[1726155447627,5.065,134.54,134.49,21.6153734]
[1726155448132,2.4572,134.54,134.49,21.6153734]
[1726155448523,2.6263,134.57,134.49,21.6153734]
[1726155448730,2.6263,134.57,134.52,17.82]
[1726155449935,3.3443,134.57,134.52,21.1653]
[1726155450136,5.0135,134.61,134.54,17.82]
[1726155450928,3.3434,134.6,134.55,3.3445]
[1726155451726,3.3436,134.59,134.54,21.1648]
[1726155451925,5.0135,134.61,134.54,17.82]
[1726155452327,3.3435,134.6,134.55,3.3444]
[1726155452736,3.3435,134.6,134.56,3.73402199]
[1726155452935,3.3435,134.6,134.55,3.3444]
[1726155453534,3.3437,134.59,134.56,3.66527942]
[1726155453742,5.0135,134.61,134.56,3.66527942]
[1726155453935,5.0135,134.61,134.54,17.82]
[1726155454341,3.3438,134.59,134.55,3.3446]
[1726155454538,3.3438,134.59,134.56,3.79653711]
[1726155454944,3.3438,134.59,134.54,17.82]
[1726155455847,3.3438,134.59,134.55,3.3445]
[1726155456049,3.3438,134.59,134.56,3.72036858]
[1726155456541,3.3438,134.59,134.55,3.3445]
[1726155457138,3.3439,134.58,134.54,21.1648]
[1726155457649,5.0135,134.61,134.56,17.82]
[1726155457842,2.5417,134.61,134.56,17.82]
[1726155458142,5.885,134.61,134.56,24.79306633]
[1726155458441,3.3434,134.6,134.56,24.79306633]
[1726155458640,3.3434,134.6,134.56,21.44896633]
[1726155458937,2.5417,134.61,134.56,21.44896633]
[1726155459142,3.3435,134.6,134.56,21.44896633]
[1726155459745,3.3436,134.59,134.56,21.44896633]
[1726155460633,2.5417,134.61,134.56,3.62896633]
[1726155460836,2.5417,134.61,134.54,17.82]
[1726155461649,2.5417,134.61,134.54,21.55151519]
[1726155461841,3.3438,134.59,134.55,3.3445]
[1726155463549,3.3438,134.59,134.56,3.3443]
[1726155464335,3.3438,134.59,134.55,3.3445]
[1726155464538,3.3435,134.6,134.54,21.55151519]
[1726155465349,3.3435,134.6,134.56,3.3442]
[1726155465844,3.3436,134.59,134.54,21.55151519]
[1726155466246,3.3436,134.59,134.55,3.3445]
[1726155466441,2.5417,134.61,134.54,21.55151519]
[1726155466840,2.5417,134.61,134.54,24.89621519]
[1726155467043,3.3438,134.59,134.54,24.89621519]
[1726155467645,3.3435,134.6,134.54,21.55151519]
[1726155467839,3.3435,134.6,134.56,17.82]
[1726155468349,7.8451,134.64,134.56,17.82]
[1726155468538,7.8451,134.64,134.58,17.82]
[1726155468739,3.3431,134.62,134.58,17.82]
[1726155468950,7.8451,134.64,134.57,3.344]
[1726155469443,234.6798,134.74,134.6,17.82]
[1726155469638,5.1592,134.69,134.6,17.82]
[1726155469839,5.1592,134.69,134.61,3.343]
[1726155470146,45.3292,134.69,134.6,17.82]
[1726155470449,3.342,134.66,134.62,3.3427]
[1726155470745,3.342,134.66,134.62,7.00249969]
[1726155472047,3.3421,134.65,134.61,3.343]
[1726155472549,3.3421,134.65,134.62,3.3428]
[1726155472848,3.3421,134.65,134.61,7.02345755]
[1726155474347,3.3421,134.65,134.62,3.3428]
[1726155475851,3.3421,134.65,134.61,7.02345755]
[1726155476041,3.3424,134.64,134.6,17.82]
[1726155476346,3.3424,134.64,134.61,3.77887543]
[1726155476553,45.3292,134.69,134.6,3.3432]
[1726155477152,3.3427,134.63,134.6,3.3432]
[1726155478150,3.3425,134.64,134.6,3.3432]
[1726155478540,3.3425,134.64,134.58,17.82]
[1726155478541,3.3425,134.64,134.61,3.3431]
[1726155482858,3.3425,134.64,134.58,17.82]
[1726155482859,3.3431,134.61,134.58,3.3437]
[1726155483069,2.578,134.63,134.56,17.82]
[1726155483357,2.578,134.63,134.57,17.82]
[1726155483551,2.6786,134.66,134.6,17.82]
[1726155483750,2.6786,134.66,134.61,3.66466087]
[1726155483950,2.6786,134.66,134.6,17.82]
[1726155484150,6.0205,134.66,134.6,17.82]
[1726155484651,6.0205,134.66,134.62,3.3427]
[1726155484956,5.9197,134.67,134.62,3.72000594]
[1726155485152,5.9197,134.67,134.63,3.3425]
[1726155485352,5.9197,134.67,134.63,7.02053283]
[1726155485859,3.3419,134.66,134.63,7.02053283]
[1726155486158,3.3419,134.66,134.63,3.67803283]
[1726155486359,3.3419,134.66,134.62,3.3427]
[1726155486758,2.578,134.67,134.59,17.82]
[1726155487954,3.3422,134.65,134.61,3.343]
[1726155488155,3.3422,134.65,134.61,7.07396635]
[1726155488362,3.3422,134.65,134.59,17.82]
[1726155488363,3.3435,134.6,134.55,1.8368]
[1726155488557,40.17,134.66,134.55,19.6568]
[1726155489258,40.17,134.66,134.55,17.82]
[1726155490265,3.3433,134.61,134.57,3.344]
[1726155490453,40.17,134.66,134.55,17.82]
[1726155490650,40.17,134.64,134.55,17.82]
[1726155490861,3.3434,134.6,134.56,3.3443]
[1726155492564,3.3439,134.58,134.54,3.73151519]
[1726155492767,27.5568,134.63,134.53,17.82]
[1726155493065,3.3437,134.59,134.54,3.3447]
[1726155493270,27.5568,134.63,134.55,17.82]
[1726155493271,5.2068,134.63,134.55,17.82]
[1726155493572,3.3432,134.61,134.57,3.3439]
[1726155493770,3.3432,134.61,134.58,3.76533153]
[1726155494864,3.343,134.62,134.58,7.10903153]
[1726155495067,3.343,134.62,134.57,17.82]
[1726155495257,3.343,134.62,134.57,21.59424972]
[1726155495458,2.6565,134.63,134.59,17.82]
[1726155495767,7.7505,134.67,134.59,17.82]
[1726155496565,7.7505,134.67,134.57,3.77424972]
[1726155496566,3.3419,134.66,134.62,3.3427]
[1726155498162,7.7505,134.67,134.61,21.163]
[1726155498369,7.7505,134.67,134.59,17.82]
[1726155498863,3.3425,134.64,134.59,17.82]
[1726155499071,3.3425,134.64,134.6,3.3431]
[1726155499261,7.7505,134.67,134.59,17.82]
[1726155499462,3.3428,134.63,134.59,21.1635]
[1726155499669,17.82,134.64,134.57,3.77424972]
[1726155499862,17.82,134.64,134.54,19.2711]
[1726155500070,3.3431,134.61,134.56,3.3442]
[1726155500265,17.82,134.64,134.57,3.72677961]
[1726155500562,17.82,134.64,134.56,3.3442]
[1726155500563,40.17,134.64,134.55,3.3445]
[1726155501064,40.17,134.64,134.54,21.61402585]
[1726155501259,40.17,134.64,134.55,3.3444]
[1726155501956,3.3437,134.59,134.55,3.3444]
[1726155502161,40.17,134.64,134.55,3.3444]
[1726155502670,3.3439,134.59,134.54,3.79402585]
[1726155502868,3.3439,134.59,134.53,17.82]
[1726155503374,3.3434,134.6,134.56,3.3443]
[1726155503968,17.82,134.64,134.57,3.3441]
[1726155504468,40.17,134.66,134.57,3.3441]
[1726155504669,40.17,134.66,134.58,3.3438]
[1726155504979,17.82,134.66,134.58,3.3438]
[1726155505472,3.343,134.62,134.59,3.3436]
[1726155505865,3.343,134.62,134.57,17.82]
[1726155506065,40.17,134.66,134.57,21.164]
[1726155506469,3.3435,134.6,134.57,21.164]
[1726155507375,3.3435,134.6,134.57,17.82]
[1726155507772,3.3435,134.6,134.56,3.3443]
[1726155508575,3.3432,134.61,134.57,3.344]
[1726155509471,3.3432,134.61,134.55,17.82]
[1726155509780,3.3434,134.6,134.56,3.3442]
[1726155511577,3.3432,134.61,134.57,3.3441]
[1726155511782,3.3432,134.61,134.55,17.82]
[1726155511969,40.17,134.66,134.55,17.82]
[1726155512178,3.3434,134.6,134.56,3.3443]
[1726155512371,40.17,134.64,134.53,21.50915805]
[1726155512568,3.3445,134.56,134.52,3.3452]
[1726155512764,3.3445,134.56,134.51,19.6524]
[1726155512765,3.3445,134.56,134.51,21.61114347]
[1726155513172,30.1803,134.61,134.51,3.79114347]
[1726155513173,48.0003,134.61,134.51,3.79114347]
[1726155513372,17.82,134.59,134.49,17.82]
[1726155513675,40.17,134.59,134.49,21.1659]
[1726155514383,3.345,134.54,134.49,21.1659]
[1726155514773,40.17,134.59,134.49,21.1659]
[1726155515079,40.17,134.57,134.47,27.0988]
[1726155515470,3.3448,134.54,134.47,27.0988]
[1726155515878,3.3447,134.55,134.5,3.3457]
[1726155516081,3.3447,134.55,134.51,3.74767744]
[1726155517077,3.3449,134.54,134.5,3.3457]
[1726155518081,3.3451,134.53,134.49,3.346]
[1726155518585,40.17,134.59,134.48,3.3463]
[1726155518586,3.3454,134.52,134.48,3.3463]
[1726155518784,3.3454,134.52,134.47,7.447]
[1726155519575,17.82,134.55,134.47,7.447]
[1726155519775,17.82,134.55,134.46,7.447]
[1726155519776,5.0395,134.54,134.46,7.447]
[1726155519983,3.3454,134.52,134.47,10.7934]
[1726155520573,3.3457,134.51,134.47,10.7934]
[1726155521084,7.5366,134.54,134.47,10.7934]
[1726155521577,7.5366,134.54,134.45,19.2694]
[1726155521578,7.5366,134.54,134.46,10.7938]
[1726155521789,3.3458,134.51,134.46,3.3468]
[1726155522281,3.3459,134.5,134.46,3.3468]
[1726155522682,3.3459,134.5,134.45,21.167]
[1726155522884,3.3457,134.51,134.45,17.82]
[1726155523195,17.82,134.53,134.45,3.3469]
[1726155523787,17.82,134.53,134.46,3.3468]
[1726155524181,3.346,134.5,134.46,3.3468]
[1726155524377,3.346,134.5,134.44,11.2097304]
[1726155524378,17.82,134.53,134.44,11.2097304]
[1726155524793,21.49499442,134.53,134.43,7.447]
[1726155525380,21.49499442,134.53,134.45,3.347]
[1726155525984,3.3462,134.49,134.46,3.3468]
[1726155528482,3.3464,134.48,134.45,3.347]
[1726155529292,3.3464,134.48,134.42,21.56451958]
[1726155529293,3.3461,134.49,134.46,3.3468]
[1726155529686,43.84499442,134.53,134.46,3.3468]
[1726155530195,43.84499442,134.53,134.43,7.447]
[1726155530395,3.346,134.5,134.43,7.447]
[1726155530815,3.346,134.5,134.42,21.56451958]
[1726155530816,3.346,134.5,134.44,25.267]
[1726155531492,3.346,134.5,134.44,29.03847319]
[1726155531897,3.346,134.5,134.46,3.3467]
[1726155532302,3.346,134.5,134.44,29.03847319]
[1726155532483,3.3457,134.51,134.47,3.3464]
[1726155532797,3.3457,134.51,134.44,21.59147319]
[1726155532985,3.3459,134.5,134.46,7.447]
[1726155533489,3.3457,134.51,134.47,3.3465]
[1726155534094,3.3457,134.51,134.45,7.447]
[1726155534398,3.3457,134.51,134.46,7.447]
[1726155534793,3.3459,134.5,134.46,7.447]
[1726155535100,3.3459,134.5,134.46,10.7937]
[1726155535299,17.82,134.51,134.44,3.77147319]
[1726155535593,3.3464,134.48,134.42,19.4486]
[1726155536096,3.3464,134.48,134.42,23.16132343]
[1726155536298,3.3464,134.48,134.44,3.3472]
[1726155536688,3.3466,134.47,134.43,7.447]
[1726155536890,17.82,134.51,134.42,3.71272343]
[1726155537091,17.82,134.51,134.4,7.447]
[1726155537092,3.3468,134.47,134.4,7.447]
[1726155537394,3.3468,134.47,134.43,3.3474]
[1726155539303,3.3469,134.46,134.43,3.3474]
[1726155539592,3.3469,134.46,134.42,10.7947]
[1726155539806,40.17,134.51,134.42,7.447]
[1726155539985,3.3467,134.47,134.42,7.447]
[1726155540188,3.3467,134.47,134.43,3.3475]
[1726155540403,3.3467,134.47,134.43,7.06932967]
[1726155540791,17.82,134.49,134.39,17.82]
[1726155540986,7.6225,134.48,134.39,21.45108962]
[1726155541188,7.6225,134.48,134.39,28.89808962]
[1726155541389,3.347,134.46,134.42,3.3477]
[1726155541789,10.969,134.48,134.41,25.267]
[1726155542090,21.54871272,134.53,134.41,17.82]
[1726155542389,17.82,134.51,134.4,2.0526]
[1726155542588,17.82,134.51,134.43,3.3475]
[1726155542790,17.82,134.51,134.4,2.0526]
[1726155542993,3.3465,134.48,134.41,17.82]
[1726155543201,17.82,134.51,134.45,3.347]
[1726155543497,3.346,134.5,134.43,17.82]
[1726155543699,3.346,134.5,134.46,3.3467]
[1726155544004,3.3461,134.49,134.43,17.82]
[1726155544296,29.8683,134.52,134.45,3.347]
[1726155544511,17.82,134.49,134.39,3.63108962]
[1726155544694,17.82,134.49,134.38,17.82]
[1726155544893,40.17,134.51,134.43,3.3474]
[1726155545088,3.3465,134.48,134.4,17.82]
[1726155545293,40.17,134.51,134.42,3.3478]
[1726155545798,40.17,134.51,134.42,3.3477]
[1726155545998,40.17,134.51,134.4,17.82]
[1726155546392,3.347,134.46,134.4,17.82]
[1726155546595,17.82,134.51,134.4,17.82]
[1726155546905,7.5183,134.52,134.45,3.3471]
[1726155547205,7.5183,134.52,134.42,17.82]
[1726155547405,3.3468,134.47,134.43,3.3474]
[1726155547594,3.3468,134.47,134.4,17.82]
[1726155547791,17.82,134.51,134.4,21.5358795]
[1726155548099,3.3466,134.48,134.44,3.3472]
[1726155548295,17.82,134.51,134.4,21.5358795]
[1726155549305,3.3465,134.48,134.4,21.5358795]
[1726155549499,17.82,134.51,134.4,21.5358795]
[1726155550101,7.5183,134.52,134.42,17.82]
[1726155550506,7.5183,134.52,134.44,17.82]
[1726155550708,3.3457,134.51,134.47,3.3464]
[1726155551007,3.3457,134.51,134.48,3.77100996]
[1726155551212,3.3456,134.51,134.48,3.77100996]
[1726155551401,7.5183,134.52,134.46,17.82]
[1726155551402,4.913,134.52,134.46,17.82]
[1726155551799,3.345,134.54,134.5,3.3457]
[1726155552004,5.053,134.56,134.49,3.78142198]
[1726155552204,3.3456,134.52,134.49,3.78142198]
[1726155552615,3.3456,134.52,134.46,17.82]
[1726155552909,3.3456,134.52,134.48,3.3462]
[1726155553111,3.3456,134.52,134.48,7.13542646]
[1726155555309,17.82,134.53,134.44,17.82]
[1726155555509,2.4503,134.52,134.44,17.82]
[1726155555912,3.3461,134.5,134.45,3.347]
[1726155556116,2.4503,134.52,134.42,17.82]
[1726155556309,17.82,134.51,134.42,17.82]
[1726155556610,3.3463,134.48,134.43,3.3474]
[1726155556808,3.3463,134.48,134.42,17.82]
[1726155557412,3.3462,134.49,134.44,3.3472]
[1726155558411,3.3462,134.49,134.45,3.347]
[1726155558813,5.0344,134.5,134.44,17.82]
[1726155559021,5.0344,134.5,134.44,25.267]
[1726155559218,5.7958,134.52,134.46,7.447]
[1726155559404,4.8869,134.54,134.49,3.346]
[1726155559716,4.8869,134.54,134.46,7.447]
[1726155559717,8.232,134.54,134.5,3.7309437]
[1726155559906,8.232,134.54,134.48,17.82]
[1726155559907,4.8869,134.54,134.48,17.82]
[1726155560407,3.3453,134.53,134.48,21.52863389]
[1726155560814,8.2318,134.54,134.48,21.52863389]
[1726155561114,4.8869,134.54,134.48,21.52863389]
[1726155562323,8.2319,134.54,134.48,21.52863389]
[1726155562514,4.8869,134.54,134.48,21.52863389]
[1726155563422,3.3453,134.53,134.49,3.3459]
[1726155564013,3.3454,134.52,134.48,24.87493389]
[1726155564217,3.3454,134.52,134.48,7.05493389]
[1726155564420,4.8869,134.54,134.48,7.05493389]
[1726155564421,4.8869,134.54,134.48,3.70863389]
[1726155564622,3.3461,134.5,134.46,10.7937]
[1726155564921,42.6978,134.53,134.43,17.82]
[1726155565115,42.6978,134.53,134.44,3.3473]
[1726155565511,42.6978,134.53,134.42,1.2502]
[1726155565911,42.6978,134.53,134.39,17.82]
[1726155565912,40.17,134.51,134.39,17.82]
[1726155566321,40.17,134.51,134.42,3.3477]
[1726155566718,3.3472,134.45,134.41,3.348]
[1726155566919,17.82,134.49,134.4,7.447]
[1726155567224,7.5822,134.48,134.4,7.447]
[1726155567806,3.3468,134.47,134.4,7.447]
[1726155568013,3.3468,134.47,134.42,3.3477]
[1726155568312,7.5822,134.48,134.4,7.447]
[1726155568513,3.3474,134.44,134.4,10.7952]
[1726155568823,7.5822,134.48,134.4,10.7952]
[1726155569208,3.3471,134.46,134.41,3.348]
[1726155569414,3.3471,134.46,134.4,7.447]
[1726155569415,7.5822,134.48,134.4,7.447]
[1726155569613,17.82,134.47,134.39,3.70408784]
[1726155569823,17.82,134.47,134.37,25.267]
[1726155570129,17.82,134.47,134.4,3.3481]
[1726155570428,17.82,134.47,134.37,29.05642279]
[1726155570725,3.3472,134.45,134.37,29.05642279]
[1726155570913,17.82,134.47,134.37,29.05642279]
[1726155571107,3.3478,134.43,134.38,3.3488]
[1726155571315,3.3478,134.43,134.37,29.05642279]
[1726155572523,3.3478,134.43,134.37,21.60942279]